bitfinex/quotes_SOLUSD_20250415
["timestamp","ask_amount","ask_price","bid_price","bid_amount"]
[1744733078414,123.53049823,129.8,129.77,0.063]
[1744733078613,32.92629823,129.79,129.77,26.063]
[1744733079322,32.92629823,129.78,129.77,0.063]
[1744733079727,39.19179823,129.78,129.77,0.063]
[1744733080535,46.89709823,129.78,129.77,0.063]
[1744733083346,32.92629823,129.79,129.77,0.063]
[1744733083512,32.92629823,129.8,129.77,0.063]
[1744733083715,115.82629823,129.81,129.77,0.063]
[1744733084126,82.9,129.81,129.77,32.98929823]
[1744733084330,90.6036,129.81,129.77,32.98929823]
[1744733084743,90.6036,129.81,129.77,0.063]
[1744733084926,123.52989823,129.81,129.77,0.063]
[1744733085422,82.9,129.81,129.77,0.063]
[1744733086735,32.92629823,129.8,129.77,0.063]
[1744733087634,90.6037,129.81,129.77,0.063]
[1744733087635,32.92629823,129.79,129.77,0.063]
[1744733087815,115.82629823,129.78,129.77,0.063]
[1744733088423,123.53159823,129.78,129.77,0.063]
[1744733090620,40.63159823,129.78,129.77,0.063]
[1744733093437,7.7053,129.78,129.77,0.063]
[1744733094351,32.92629823,129.79,129.77,0.063]
[1744733094644,82.9,129.82,129.78,26.0]
[1744733094944,82.9,129.82,129.79,1.6002]
[1744733095118,82.9,129.82,129.81,26.0]
[1744733095322,90.6018,129.84,129.81,26.0]
[1744733095644,123.52809823,129.84,129.79,1.6002]
[1744733096136,32.92629823,129.83,129.79,1.6002]
[1744733096336,123.52809823,129.84,129.79,1.6002]
[1744733096540,32.92629823,129.83,129.79,1.6002]
[1744733097651,32.92629823,129.81,129.78,26.0]
[1744733098121,40.63039823,129.8,129.78,26.0]
[1744733098327,7.7041,129.8,129.78,26.0]
[1744733098955,40.62999823,129.81,129.78,26.0]
[1744733099448,32.92629823,129.81,129.78,26.0]
[1744733099654,82.9,129.83,129.8,58.92629823]
[1744733099955,90.6015,129.85,129.81,32.92629823]
[1744733100455,82.9,129.85,129.81,32.92629823]
[1744733100629,90.6011,129.85,129.81,32.92629823]
[1744733101044,90.6011,129.85,129.8,58.92629823]
[1744733101428,115.82629823,129.84,129.8,26.0]
[1744733101623,32.92629823,129.81,129.77,0.063]
[1744733101854,115.82629823,129.8,129.77,0.063]
[1744733102349,82.9,129.8,129.77,0.063]
[1744733102653,90.6045,129.8,129.77,0.063]
[1744733103837,82.9,129.8,129.77,0.063]
[1744733104041,1027.51252,158.91,129.85,1.3153]
[1744733104042,0.03,129.91,129.85,1.3153]
[1744733104248,0.03,129.91,129.89,26.0]
[1744733104455,32.95629823,129.91,129.85,52.89124709]
[1744733104629,32.92629823,129.89,129.86,26.0]
[1744733104831,32.92629823,129.88,129.86,26.0]
[1744733105365,32.92629823,129.88,129.85,26.0]
[1744733106263,32.92629823,129.86,129.82,26.0]
[1744733107347,32.92629823,129.85,129.81,1.537]
[1744733107551,32.92629823,129.85,129.82,26.0]
[1744733108458,32.92629823,129.83,129.78,1.5689]
[1744733108646,40.63029823,129.81,129.77,0.063]
[1744733108968,40.63029823,129.81,129.78,26.0]
[1744733109149,32.92629823,129.81,129.78,26.0]
[1744733109650,40.62849823,129.84,129.79,58.92629823]
[1744733109843,7.7022,129.84,129.79,58.92629823]
[1744733110155,32.92629823,129.83,129.79,26.0]
[1744733110359,7.7022,129.84,129.79,26.0]
[1744733110360,32.92629823,129.82,129.79,26.0]
[1744733111054,40.62929823,129.82,129.79,26.0]
[1744733111436,7.7025,129.83,129.79,26.0]
[1744733111857,7.7025,129.83,129.77,0.063]
[1744733111858,32.92629823,129.82,129.77,0.063]
[1744733112060,32.92629823,129.82,129.79,26.0]
[1744733113845,40.62879823,129.83,129.79,26.0]
[1744733114041,115.82629823,129.85,129.8,32.92629823]
[1744733114243,82.9,129.85,129.82,58.92629823]
[1744733114442,115.82629823,129.87,129.82,58.92629823]
[1744733114643,82.9,129.87,129.82,58.92629823]
[1744733114840,115.82629823,129.87,129.82,58.92629823]
[1744733115272,123.52639823,129.87,129.82,58.92629823]
[1744733115638,123.52639823,129.87,129.82,26.0]
[1744733115860,90.6001,129.87,129.82,26.0]
[1744733116062,32.92629823,129.85,129.82,26.0]
[1744733116373,115.82629823,129.84,129.82,26.0]
[1744733116658,32.92629823,129.83,129.8,1.5302]
[1744733116873,115.82629823,129.84,129.8,1.5302]
[1744733117065,32.92629823,129.82,129.77,34.63769823]
[1744733117253,40.62969823,129.82,129.77,20.36104886]
[1744733117446,90.6026,129.83,129.78,58.92629823]
[1744733117764,123.52889823,129.83,129.78,58.92629823]
[1744733118859,90.6026,129.83,129.78,58.92629823]
[1744733119060,123.52889823,129.83,129.78,26.0]
[1744733119246,32.92629823,129.82,129.78,26.0]
[1744733119447,32.92629823,129.82,129.79,26.0]
[1744733119774,32.92629823,129.81,129.79,26.0]
[1744733120064,32.92629823,129.81,129.77,1.7114]
[1744733120065,32.92629823,129.82,129.77,1.7114]
[1744733120365,32.92629823,129.82,129.77,34.63769823]
[1744733120754,32.92629823,129.82,129.77,60.63769823]
[1744733121168,7.7035,129.81,129.77,27.7114]
[1744733121360,32.92629823,129.78,129.77,0.063]
[1744733122745,40.63159823,129.78,129.77,0.063]
[1744733124065,82.9,129.8,129.77,0.063]
[1744733124066,7.7049,129.79,129.77,0.063]
[1744733124249,90.6043,129.8,129.77,0.063]
[1744733124959,32.92629823,129.78,129.77,0.063]
[1744733125164,32.92629823,129.79,129.77,0.063]
[1744733125869,123.53059823,129.8,129.77,0.063]
[1744733126068,90.6043,129.8,129.77,0.063]
[1744733126254,123.53059823,129.8,129.77,0.063]
[1744733126456,32.92629823,129.78,129.77,0.063]
[1744733126660,32.92629823,129.79,129.77,0.063]
[1744733126961,40.63119823,129.79,129.77,0.063]
[1744733127552,82.9,129.78,129.77,0.063]
[1744733128045,82.9,129.81,129.77,32.98929823]
[1744733129254,90.6036,129.81,129.77,32.98929823]
[1744733129551,82.9,129.81,129.77,32.98929823]
[1744733130375,82.9,129.81,129.8,26.0]
[1744733130555,90.6021,129.84,129.8,58.92629823]
[1744733130865,82.9,129.83,129.8,58.92629823]
[1744733131068,82.9,129.83,129.78,1.5304]
[1744733131069,32.92629823,129.82,129.77,0.063]
[1744733131268,32.92629823,129.79,129.77,0.063]
[1744733131449,82.9,129.78,129.77,0.063]
[1744733132771,32.92629823,129.8,129.77,0.063]
[1744733132979,90.6033,129.82,129.78,20.15284886]
[1744733133272,123.52959823,129.82,129.78,20.15284886]
[1744733133950,90.6033,129.82,129.78,53.07914709]
[1744733134151,90.6033,129.82,129.78,20.15284886]
[1744733134361,123.52959823,129.82,129.77,58.98929823]
[1744733134560,32.92629823,129.81,129.77,26.063]
[1744733135277,7.704,129.81,129.77,26.063]
[1744733135971,90.6032,129.82,129.78,32.92629823]
[1744733136173,90.6032,129.82,129.77,58.98929823]
[1744733136674,123.52949823,129.82,129.77,58.98929823]
[1744733137358,90.6032,129.82,129.77,58.98929823]
[1744733137557,123.52949823,129.82,129.77,26.063]
[1744733137851,123.52949823,129.82,129.77,58.98929823]
[1744733138875,82.9,129.82,129.8,26.0]
[1744733139064,90.6031,129.82,129.8,26.0]
[1744733139264,90.6031,129.82,129.78,58.92629823]
[1744733139656,90.6031,129.82,129.78,26.0]
[1744733140671,82.9,129.82,129.81,26.0]
[1744733140980,82.9,129.84,129.81,58.92629823]
[1744733141560,82.9,129.84,129.82,32.92629823]
[1744733141768,82.9,129.84,129.81,58.92629823]
[1744733142979,82.9,129.84,129.81,60.57699823]
[1744733143187,82.9,129.84,129.82,32.92629823]
[1744733143388,82.9,129.84,129.81,27.6507]
[1744733143579,82.9,129.84,129.81,60.57699823]
[1744733143778,82.9,129.84,129.81,27.6507]
[1744733143971,82.9,129.84,129.81,60.57699823]
[1744733144175,82.9,129.84,129.82,32.92629823]
[1744733144783,90.6002,129.87,129.82,32.92629823]
[1744733145286,123.52649823,129.87,129.82,26.0]
[1744733145467,32.92629823,129.86,129.82,26.0]
[1744733146570,82.9,129.85,129.81,1.6507]
[1744733146800,32.92629823,129.86,129.77,0.063]
[1744733146801,32.92629823,129.82,129.77,0.063]
[1744733146966,32.92629823,129.79,129.77,0.063]
[1744733147267,115.82629823,129.78,129.77,0.063]
[1744733147473,123.53159823,129.78,129.77,0.063]
[1744733147789,82.9,129.78,129.77,0.063]
[1744733148379,82.9,129.78,129.77,26.063]
[1744733149487,123.53159823,129.78,129.77,0.063]
[1744733150070,40.63159823,129.78,129.77,0.063]
[1744733150672,7.7049,129.79,129.77,0.063]
[1744733151176,40.63119823,129.79,129.77,0.063]
[1744733151976,32.92629823,129.8,129.77,0.063]
[1744733152376,40.62979823,129.81,129.77,0.063]
[1744733152992,82.9,129.8,129.77,0.063]
[1744733153501,90.6044,129.8,129.77,0.063]
[1744733153688,123.53069823,129.8,129.77,0.063]
[1744733153895,32.92629823,129.78,129.77,0.063]
[1744733156021,40.63159823,129.78,129.77,0.063]
[1744733160303,7.7053,129.78,129.77,0.063]
[1744733160611,40.63159823,129.78,129.77,0.063]
[1744733161608,7.7053,129.78,129.77,0.063]
[1744733162421,40.63159823,129.78,129.77,0.063]
[1744733163299,7.7053,129.78,129.77,0.063]
[1744733163528,32.92629823,129.79,129.77,0.063]
[1744733163729,7.7029,129.82,129.77,26.063]
[1744733164027,32.92629823,129.81,129.77,26.063]
[1744733164219,32.92629823,129.8,129.77,26.063]
[1744733164600,32.92629823,129.81,129.77,26.063]
[1744733165525,7.7047,129.79,129.77,26.063]
[1744733166223,82.9,129.78,129.77,0.063]
[1744733166433,32.92629823,129.78,129.77,0.063]
[1744733166636,32.92629823,129.78,129.76,0.063]
[1744733166932,115.82629823,129.77,129.74,0.063]
[1744733167099,32.92629823,129.75,129.72,0.063]
[1744733167296,32.92629823,129.73,129.72,0.063]
[1744733167515,40.63459823,129.73,129.72,0.063]
[1744733168113,7.7083,129.73,129.72,0.063]
[1744733168318,7.7071,129.75,129.72,0.063]
[1744733168518,32.92629823,129.74,129.72,0.063]
[1744733168722,40.63339823,129.75,129.72,0.063]
[1744733170232,7.7059,129.77,129.72,32.98929823]
[1744733170412,7.5716,129.83,129.74,34.58669823]
[1744733170598,32.92629823,129.8,129.74,34.58669823]
[1744733170806,32.92629823,129.79,129.74,1.6604]
[1744733171110,32.92629823,129.79,129.74,34.58669823]
[1744733171534,7.7053,129.78,129.74,34.58669823]
[1744733174430,52.18399823,129.82,129.76,32.92629823]
[1744733174609,82.9,129.79,129.76,32.92629823]
[1744733174812,82.9,129.79,129.75,32.92629823]
[1744733175028,115.82629823,129.79,129.74,60.58669823]
[1744733175225,115.82629823,129.79,129.74,27.6604]
[1744733175612,115.82629823,129.78,129.73,32.92629823]
[1744733175812,59.89699823,129.77,129.72,32.98929823]
[1744733176020,82.9,129.76,129.72,0.063]
[1744733176225,115.82629823,129.76,129.72,0.063]
[1744733176728,82.9,129.76,129.72,0.063]
[1744733177420,82.9,129.76,129.72,32.98929823]
[1744733177624,82.9,129.76,129.72,0.063]
[1744733177924,7.7071,129.75,129.72,0.063]
[1744733179123,82.9,129.76,129.72,18.71264886]
[1744733179325,82.9,129.76,129.73,32.92629823]
[1744733180430,90.6066,129.76,129.73,32.92629823]
[1744733180732,90.6066,129.76,129.72,0.063]
[1744733180733,90.6066,129.76,129.72,32.98929823]
[1744733180927,82.9,129.76,129.73,32.92629823]
[1744733181117,82.9,129.79,129.75,58.92629823]
[1744733181314,82.9,129.79,129.76,32.92629823]
[1744733181527,82.9,129.79,129.77,32.92629823]
[1744733181719,7.7042,129.8,129.77,32.92629823]
[1744733182108,7.7038,129.81,129.77,32.92629823]
[1744733182718,90.6031,129.82,129.79,32.92629823]
[1744733183119,82.9,129.82,129.79,32.92629823]
[1744733183720,32.92629823,129.84,129.8,32.92629823]
[1744733183721,7.702,129.84,129.8,32.92629823]
[1744733184217,7.702,129.84,129.81,32.92629823]
[1744733184540,90.6014,129.85,129.82,32.92629823]
[1744733184715,90.6014,129.85,129.81,32.92629823]
[1744733184912,82.9,129.85,129.81,32.92629823]
[1744733185143,82.9,129.85,129.82,32.92629823]
[1744733185620,90.6002,129.87,129.83,32.92629823]
[1744733186228,82.9,129.87,129.83,32.92629823]
[1744733186429,90.6,129.87,129.83,34.54249823]
[1744733186732,40.62739823,129.85,129.79,34.54249823]
[1744733187037,82.9,129.84,129.79,60.54249823]
[1744733187329,82.9,129.84,129.8,32.92629823]
[1744733187529,82.9,129.84,129.8,18.64964886]
[1744733187734,82.9,129.84,129.82,32.92629823]
[1744733187916,90.6007,129.86,129.82,32.92629823]
[1744733188115,90.6007,129.86,129.8,18.64964886]
[1744733188116,90.6007,129.86,129.81,32.92629823]
[1744733189038,90.6007,129.86,129.82,58.92629823]
[1744733189841,32.92629823,129.85,129.82,26.0]
[1744733191050,7.7017,129.84,129.82,26.0]
[1744733192047,40.62799823,129.84,129.82,26.0]
[1744733192222,40.62799823,129.84,129.81,26.0]
[1744733192419,82.9,129.83,129.8,26.0]
[1744733192651,82.9,129.83,129.81,26.0]
[1744733193734,123.52869823,129.83,129.79,1.6162]
[1744733193925,123.52869823,129.83,129.78,32.92629823]
[1744733194252,32.92629823,129.82,129.77,32.92629823]
[1744733194538,32.92629823,129.78,129.72,41.11389823]
[1744733194750,115.82629823,129.77,129.72,34.59339823]
[1744733194935,32.92629823,129.74,129.72,0.063]
[1744733195247,32.92629823,129.73,129.72,0.063]
[1744733195841,40.63409823,129.74,129.72,0.063]
[1744733197128,123.53459823,129.73,129.72,0.063]
[1744733199339,123.53459823,129.73,129.71,0.063]
[1744733199540,115.82629823,129.72,129.69,0.063]
[1744733199757,32.92629823,129.7,129.69,0.063]
[1744733200455,40.63639823,129.7,129.69,0.063]
[1744733201727,40.63639823,129.7,129.67,0.063]
[1744733201728,32.92629823,129.68,129.67,0.063]
[1744733201921,32.92629823,129.68,129.67,0.0001]
[1744733202135,82.9,129.67,129.66,0.0001]
[1744733202442,82.9,129.67,129.64,0.063]
[1744733202443,44.64964886,129.65,129.64,0.0001]
[1744733202626,77.57594709,129.65,129.64,0.0001]
[1744733202823,101.54964886,129.64,129.62,0.063]
[1744733203023,32.92629823,129.63,129.62,0.063]
[1744733203229,108.9,129.62,129.6,0.063]
[1744733203543,129.79669823,129.61,129.6,0.0001]
[1744733204329,101.54964886,129.6,129.58,0.0001]
[1744733204547,32.92629823,129.59,129.58,0.0001]
[1744733206060,40.64289823,129.59,129.58,0.0001]
[1744733210558,19.2854,129.64,129.58,0.0001]
[1744733210752,32.92629823,129.61,129.58,0.0001]
[1744733211446,32.92629823,129.62,129.58,0.0001]
[1744733212256,7.7154,129.61,129.58,0.0001]
[1744733212758,7.7154,129.61,129.58,32.92639823]
[1744733213339,7.7154,129.61,129.58,0.0001]
[1744733213960,7.715,129.62,129.58,0.0001]
[1744733214255,40.63989823,129.64,129.59,32.92629823]
[1744733214468,82.9,129.63,129.6,32.92629823]
[1744733214854,7.7124,129.66,129.61,32.92629823]
[1744733216055,7.7124,129.66,129.58,0.0001]
[1744733216056,32.92629823,129.63,129.58,0.0001]
[1744733216268,115.82629823,129.62,129.58,0.0001]
[1744733216459,52.9935,129.66,129.58,0.0001]
[1744733216460,32.92629823,129.6,129.58,0.0001]
[1744733216758,82.9,129.59,129.58,0.0001]
[1744733218856,82.9,129.59,129.56,26.063]
[1744733219048,82.9,129.59,129.57,32.92629823]
[1744733220348,82.9,129.58,129.56,0.063]
[1744733220548,115.82629823,129.57,129.56,0.063]
[1744733220763,32.92629823,129.57,129.56,0.063]
[1744733222164,40.64409823,129.57,129.56,0.063]
[1744733222875,66.64409823,129.57,129.56,0.063]
[1744733223666,66.64409823,129.57,129.56,0.0001]
[1744733224373,40.64409823,129.57,129.56,0.0001]
[1744733226349,59.29374709,129.57,129.56,0.0001]
[1744733226962,59.29374709,129.57,129.55,0.063]
[1744733227171,18.64964886,129.53,129.49,0.063]
[1744733227467,32.92629823,129.51,129.49,0.063]
[1744733227654,32.92629823,129.5,129.49,0.063]
[1744733228665,40.64829823,129.5,129.49,0.063]
[1744733229754,46.91529823,129.5,129.49,0.063]
[1744733231862,26.0,129.46,129.45,0.063]
[1744733232173,58.92629823,129.46,129.45,0.063]
[1744733232388,32.92629823,129.46,129.43,0.063]
[1744733232578,32.92629823,129.44,129.43,0.063]
[1744733233085,32.92629823,129.45,129.43,0.063]
[1744733233455,32.92629823,129.44,129.43,0.063]
[1744733233680,82.9,129.45,129.43,0.063]
[1744733233880,82.9,129.45,129.44,32.92629823]
[1744733234576,115.82629823,129.49,129.44,58.92629823]
[1744733234782,115.82629823,129.52,129.47,32.92629823]
[1744733234962,82.9,129.52,129.47,32.92629823]
[1744733235483,115.82629823,129.52,129.47,32.92629823]
[1744733235851,32.92629823,129.5,129.45,9.3875]
[1744733236174,32.92629823,129.5,129.45,42.31379823]
[1744733236372,32.92629823,129.49,129.44,58.92629823]
[1744733236581,115.82629823,129.48,129.43,0.063]
[1744733236777,115.82629823,129.47,129.43,0.063]
[1744733236984,32.92629823,129.44,129.43,0.063]
[1744733237985,82.9,129.46,129.43,0.063]
[1744733238170,32.92629823,129.45,129.43,0.063]
[1744733239785,32.92629823,129.44,129.43,0.063]
[1744733240303,40.65179823,129.44,129.43,0.063]
[1744733240892,59.30144709,129.44,129.43,0.063]
[1744733241268,6.2105,129.43,129.35,13.9971]
[1744733241564,32.92629823,129.38,129.35,7.7306]
[1744733241768,32.92629823,129.36,129.33,7.7318]
[1744733241969,32.92629823,129.39,129.33,59.98839823]
[1744733242166,26.0,129.44,129.37,32.92629823]
[1744733242389,32.92629823,129.43,129.38,32.92629823]
[1744733242577,6.5804,129.46,129.39,32.92629823]
[1744733242578,32.92629823,129.45,129.39,32.92629823]
[1744733242777,32.92629823,129.44,129.39,32.92629823]
[1744733242986,6.5804,129.46,129.39,32.92629823]
[1744733243183,32.92629823,129.45,129.39,32.92629823]
[1744733243391,33.724,129.47,129.39,32.92629823]
[1744733243392,32.92629823,129.44,129.39,18.64964886]
[1744733243697,32.92629823,129.45,129.4,32.92629823]
[1744733243902,32.92629823,129.45,129.4,40.65419823]
[1744733244286,32.92629823,129.46,129.4,59.97409823]
[1744733244601,32.92629823,129.45,129.4,59.97409823]
[1744733244793,32.92629823,129.44,129.4,27.0478]
[1744733244993,32.92629823,129.43,129.39,7.7283]
[1744733245576,58.92629823,129.46,129.4,32.92629823]
[1744733245805,58.92629823,129.46,129.41,32.92629823]
[1744733245981,66.65079823,129.46,129.41,7.727]
[1744733246304,32.92629823,129.45,129.41,7.727]
[1744733247011,32.92629823,129.46,129.41,40.65329823]
[1744733247489,32.92629823,129.45,129.41,7.727]
[1744733247797,82.9,129.44,129.41,7.727]
[1744733247995,82.9,129.44,129.41,32.92629823]
[1744733248209,82.9,129.44,129.4,40.65419823]
[1744733248983,82.9,129.44,129.41,32.92629823]
[1744733249283,7.7238,129.47,129.42,32.92629823]
[1744733249284,32.92629823,129.47,129.42,32.92629823]
[1744733249482,115.82629823,129.48,129.42,32.92629823]
[1744733249686,115.82629823,129.48,129.44,1.612]
[1744733249885,82.9,129.48,129.44,34.53829823]
[1744733250099,82.9,129.48,129.45,7.7249]
[1744733250475,82.9,129.48,129.46,32.92629823]
[1744733250710,82.9,129.52,129.47,32.92629823]
[1744733250906,115.82629823,129.53,129.47,32.92629823]
[1744733251306,115.82629823,129.53,129.48,32.92629823]
[1744733251607,115.82629823,129.55,129.5,32.92629823]
[1744733252028,130.10549823,129.58,129.52,32.92629823]
[1744733252312,115.85629823,129.58,129.53,40.64649823]
[1744733252484,123.57369823,129.58,129.53,7.7202]
[1744733252683,0.03,129.58,129.54,32.92629823]
[1744733252919,0.03,129.58,129.57,26.0]
[1744733253278,0.03,129.58,129.57,58.92629823]
[1744733253483,0.03,129.58,129.56,32.92629823]
[1744733253875,0.03,129.58,129.55,26.0]
[1744733254078,40.67369823,129.58,129.52,7.7205]
[1744733254394,32.92629823,129.54,129.51,27.5219]
[1744733254596,32.92629823,129.55,129.51,35.2431]
[1744733254795,7.7474,129.58,129.51,35.2431]
[1744733254796,32.92629823,129.56,129.51,35.2431]
[1744733254980,32.92629823,129.55,129.51,35.2431]
[1744733255313,32.92629823,129.52,129.48,18.64964886]
[1744733255607,32.92629823,129.51,129.47,9.2444]
[1744733255782,32.92629823,129.5,129.47,9.2444]
[1744733255977,32.92629823,129.5,129.44,6.0172]
[1744733255978,32.92629823,129.49,129.44,46.66879823]
[1744733256187,32.92629823,129.49,129.45,26.0]
[1744733256585,40.64889823,129.49,129.45,26.0]
[1744733257212,32.92629823,129.48,129.45,26.0]
[1744733257511,32.92629823,129.5,129.45,58.92629823]
[1744733257809,33.34469121,129.51,129.45,59.34469121]
[1744733258019,116.24469121,129.52,129.46,33.34469121]
[1744733258311,116.24469121,129.51,129.47,33.7237]
[1744733258507,123.96609121,129.51,129.47,26.0]
[1744733258714,33.34469121,129.5,129.47,33.7237]
[1744733258914,82.9,129.5,129.47,33.7237]
[1744733259315,116.24469121,129.5,129.47,26.0]
[1744733259516,33.34469121,129.48,129.45,26.0]
[1744733259713,7.7216,129.51,129.45,26.0]
[1744733259714,116.24469121,129.47,129.45,26.0]
[1744733260181,82.9,129.47,129.45,26.0]
[1744733260587,116.24469121,129.47,129.43,9.3884]
[1744733260902,116.24469121,129.46,129.43,26.0]
[1744733261224,33.34469121,129.44,129.39,7.7285]
[1744733261392,33.34469121,129.41,129.38,7.7289]
[1744733261589,33.34469121,129.41,129.37,0.063]
[1744733261787,33.34469121,129.4,129.37,0.063]
[1744733262093,33.34469121,129.38,129.37,0.063]
[1744733262685,33.34469121,129.41,129.37,0.063]
[1744733262907,33.34469121,129.42,129.37,18.71264886]
[1744733263113,33.34469121,129.41,129.37,18.71264886]
[1744733263311,33.34469121,129.42,129.37,44.71264886]
[1744733263503,39.95779121,129.45,129.4,26.0]
[1744733264196,33.34469121,129.44,129.39,44.64964886]
[1744733264399,33.34469121,129.44,129.4,7.7279]
[1744733264599,33.34469121,129.45,129.4,7.7279]
[1744733265207,50.61583442,129.45,129.4,7.7279]
[1744733265732,50.61583442,129.46,129.4,77.66363442]
[1744733267392,82.9,129.47,129.42,76.61583442]
[1744733267607,82.9,129.47,129.43,50.61583442]
[1744733267910,133.51583442,129.47,129.43,7.7259]
[1744733268415,82.9,129.47,129.43,7.7259]
[1744733269484,141.23963442,129.47,129.42,33.7266]
[1744733269720,50.61583442,129.45,129.4,7.7279]
[1744733269897,50.61583442,129.44,129.4,7.7279]
[1744733270212,50.61583442,129.45,129.4,7.7279]
[1744733272385,58.34083442,129.45,129.4,7.7279]
[1744733272593,50.61583442,129.45,129.4,7.7279]
[1744733273111,82.9,129.46,129.43,50.61583442]
[1744733273901,82.9,129.46,129.44,7.7255]
[1744733275021,82.9,129.46,129.43,7.7261]
[1744733276116,82.9,129.46,129.42,26.0]
[1744733276320,82.9,129.46,129.42,33.7267]
[1744733276321,50.61583442,129.45,129.42,33.7267]
[1744733276621,82.9,129.46,129.42,33.7267]
[1744733276622,133.51583442,129.46,129.42,33.7267]
[1744733276999,50.61583442,129.45,129.42,33.7267]
[1744733277516,58.34133442,129.45,129.4,50.61583442]
[1744733277700,50.61583442,129.45,129.39,58.34433442]
[1744733278301,133.51583442,129.46,129.4,50.61583442]
[1744733278502,50.61583442,129.45,129.4,50.61583442]
[1744733278726,50.61583442,129.45,129.39,77.66573442]
[1744733280029,133.51583442,129.46,129.4,50.61583442]
[1744733280331,141.24023442,129.46,129.4,50.61583442]
[1744733280622,50.61583442,129.45,129.4,50.61583442]
[1744733280821,50.61583442,129.45,129.39,77.66573442]
[1744733281139,141.24183442,129.44,129.38,85.96503442]
[1744733281330,141.24183442,129.44,129.37,58.40833442]
[1744733281331,50.61583442,129.43,129.37,58.40833442]
[1744733281630,133.51583442,129.42,129.37,58.40833442]
[1744733282129,133.51583442,129.42,129.37,7.7925]
[1744733282507,133.51583442,129.41,129.37,0.063]
[1744733282712,50.61583442,129.39,129.37,0.063]
[1744733284008,50.61583442,129.38,129.37,0.063]
[1744733284805,69.26548328,129.38,129.37,0.063]
[1744733285207,52.07555346,129.38,129.37,0.063]
[1744733285608,59.80465346,129.38,129.37,0.063]
[1744733286526,33.4259046,129.38,129.37,0.063]
[1744733286733,59.80465346,129.38,129.37,0.063]
[1744733287729,20.0,129.36,129.3,0.063]
[1744733287923,33.4259046,129.31,129.3,0.063]
[1744733289619,41.1592046,129.31,129.3,0.063]
[1744733290524,33.4259046,129.31,129.3,0.063]
[1744733290923,39.9705046,129.32,129.31,0.063]
[1744733291134,33.4259046,129.32,129.31,0.063]
[1744733291336,33.4259046,129.35,129.31,0.063]
[1744733291636,33.4259046,129.35,129.31,7.7963]
[1744733291942,33.4259046,129.36,129.31,41.2222046]
[1744733292531,82.9,129.34,129.32,33.4259046]
[1744733292839,116.3259046,129.39,129.33,33.4259046]
[1744733293049,82.9,129.38,129.34,33.4259046]
[1744733293218,33.4259046,129.41,129.36,33.4259046]
[1744733293416,116.3259046,129.42,129.36,34.9354046]
[1744733293616,33.4259046,129.41,129.37,7.7297]
[1744733294023,33.4259046,129.44,129.37,53.0541]
[1744733294219,33.4259046,129.45,129.37,71.70374886]
[1744733294418,116.3259046,129.46,129.41,33.4259046]
[1744733294640,33.4259046,129.45,129.4,33.4259046]
[1744733295042,116.3259046,129.46,129.4,33.4259046]
[1744733295424,124.0503046,129.46,129.4,59.4259046]
[1744733295645,116.3259046,129.46,129.41,7.7273]
[1744733295819,116.3259046,129.46,129.41,41.1532046]
[1744733296136,33.4559046,129.49,129.43,59.4259046]
[1744733296330,33.4259046,129.47,129.43,26.0]
[1744733296642,33.4259046,129.46,129.41,60.4716046]
[1744733296840,33.4259046,129.45,129.41,7.7273]
[1744733297228,33.4259046,129.44,129.4,33.7277]
[1744733297416,127.54964886,129.48,129.4,26.0]
[1744733297618,33.4259046,129.44,129.4,26.0]
[1744733297835,33.4259046,129.44,129.4,33.7279]
[1744733298022,33.4259046,129.44,129.4,26.0]
[1744733298533,33.4259046,129.42,129.38,26.0]
[1744733298733,33.4259046,129.4,129.37,7.7294]
[1744733298921,33.4259046,129.41,129.37,7.7294]
[1744733299424,33.4259046,129.43,129.38,33.4259046]